bitfinex/quotes_SOLUSD_20250318
["timestamp","ask_amount","ask_price","bid_price","bid_amount"]
[1742263470912,32.76308654,125.45,125.44,0.063]
[1742263471616,24.79178654,125.45,125.44,0.063]
[1742263473519,32.05178654,125.46,125.44,0.063]
[1742263474023,24.79178654,125.45,125.44,0.063]
[1742263475516,32.76308654,125.45,125.44,0.063]
[1742263475935,24.79178654,125.45,125.44,0.063]
[1742263477843,7.9706,125.46,125.44,0.063]
[1742263478143,24.79178654,125.45,125.44,0.063]
[1742263478731,32.05178654,125.45,125.44,0.063]
[1742263479442,40.02308654,125.45,125.44,0.063]
[1742263481244,32.05178654,125.45,125.44,0.063]
[1742263481543,40.02308654,125.45,125.44,0.063]
[1742263484258,32.05178654,125.45,125.44,0.063]
[1742263485250,24.79178654,125.46,125.44,0.063]
[1742263486242,0.03,125.47,125.44,0.063]
[1742263486539,0.03,125.47,125.44,8.0349]
[1742263486954,0.03,125.47,125.44,32.82668654]
[1742263487133,0.03,125.47,125.45,43.4414354]
[1742263487334,0.03,125.47,125.46,43.4414354]
[1742263487545,0.03,125.47,125.46,43.86792011]
[1742263488327,0.03,125.47,125.46,51.83852011]
[1742263488933,24.79178654,125.54,125.49,6.6662]
[1742263489152,24.79178654,125.54,125.49,31.45798654]
[1742263489855,24.79178654,125.53,125.49,6.6662]
[1742263490050,24.79178654,125.53,125.5,7.9681]
[1742263490828,7.965,125.55,125.5,7.9681]
[1742263490829,24.79178654,125.55,125.5,7.9681]
[1742263491029,81.8,125.57,125.52,0.42648471]
[1742263491030,24.79178654,125.57,125.52,0.42648471]
[1742263491240,24.79178654,125.57,125.53,18.64964886]
[1742263491435,24.79178654,125.58,125.53,43.4414354]
[1742263491640,0.03,125.6,125.54,24.79178654]
[1742263491849,24.82178654,125.6,125.56,18.64964886]
[1742263492156,24.82178654,125.6,125.57,7.9636]
[1742263492349,0.03,125.6,125.57,7.9636]
[1742263494649,0.03,125.6,125.57,32.75538654]
[1742263495760,24.82178654,125.6,125.56,26.88334886]
[1742263496154,24.79178654,125.59,125.56,6.6068]
[1742263499745,7.9921,125.6,125.56,6.6068]
[1742263499951,24.82178654,125.6,125.56,6.6068]
[1742263500366,24.79178654,125.59,125.56,6.6068]
[1742263500758,0.03,125.6,125.56,14.5708]
[1742263500962,24.82178654,125.6,125.57,18.64964886]
[1742263501971,24.79178654,125.58,125.56,6.6068]
[1742263504651,24.79178654,125.57,125.53,18.64964886]
[1742263504857,24.79178654,125.56,125.53,26.61574886]
[1742263506351,24.79178654,125.56,125.53,18.64964886]
[1742263506558,24.79178654,125.56,125.52,6.3679]
[1742263506951,24.79178654,125.56,125.52,14.3347]
[1742263507369,24.79178654,125.59,125.54,24.79178654]
[1742263507550,24.79178654,125.59,125.55,24.79178654]
[1742263507873,24.82178654,125.6,125.55,24.79178654]
[1742263508074,24.82178654,125.6,125.56,7.9643]
[1742263509270,0.03,125.6,125.56,32.75608654]
[1742263509567,0.03,125.6,125.57,18.64964886]
[1742263510071,24.79178654,125.59,125.55,7.26]
[1742263510273,24.79178654,125.58,125.55,7.26]
[1742263510654,24.79178654,125.56,125.52,14.3346]
[1742263510956,24.79178654,125.54,125.52,6.3679]
[1742263511181,24.79178654,125.58,125.49,6.4901]
[1742263511182,24.79178654,125.53,125.49,6.4901]
[1742263511382,24.79178654,125.5,125.49,6.4901]
[1742263511546,24.79178654,125.51,125.49,6.4901]
[1742263511988,7.26,125.56,125.49,6.4901]
[1742263511989,24.79178654,125.5,125.49,6.4901]
[1742263512279,24.79178654,125.51,125.49,6.4901]
[1742263512667,24.79178654,125.51,125.46,33.69394811]
[1742263512668,24.79178654,125.5,125.46,1.5]
[1742263512854,24.79178654,125.48,125.46,1.5]
[1742263513063,24.79178654,125.48,125.45,14.4613]
[1742263513270,24.79178654,125.48,125.45,6.4901]
[1742263514262,24.79178654,125.47,125.45,0.063]
[1742263514454,24.79178654,125.46,125.45,0.063]
[1742263517480,7.26,125.48,125.45,0.063]
[1742263517481,32.05178654,125.48,125.45,0.063]
[1742263518291,32.05178654,125.48,125.45,8.0343]
[1742263519783,24.79178654,125.46,125.45,0.063]
[1742263520157,49.58357308,125.46,125.45,0.063]
[1742263520485,24.79178654,125.46,125.45,0.063]
[1742263521201,39.75283096,125.47,125.45,0.063]
[1742263522296,39.75283096,125.46,125.45,0.063]
[1742263522883,39.75283096,125.47,125.45,0.063]
[1742263523095,47.01283096,125.48,125.45,0.063]
[1742263525279,39.75283096,125.48,125.45,0.063]
[1742263526090,39.78283096,125.48,125.45,0.063]
[1742263526483,39.75283096,125.47,125.45,0.063]
[1742263526996,39.78283096,125.48,125.45,0.063]
[1742263527883,0.03,125.48,125.45,0.063]
[1742263528894,0.03,125.48,125.45,18.71264886]
[1742263529077,0.03,125.48,125.46,49.22643096]
[1742263529995,0.03,125.48,125.46,9.4736]
[1742263530395,39.78283096,125.48,125.45,26.68364886]
[1742263530597,39.75283096,125.47,125.45,0.063]
[1742263530897,39.75283096,125.47,125.45,8.0342]
[1742263531087,39.78283096,125.48,125.45,8.0342]
[1742263531289,0.03,125.48,125.46,58.40247982]
[1742263531480,0.03,125.48,125.47,39.75283096]
[1742263531669,0.03,125.48,125.46,18.64964886]
[1742263531872,0.03,125.48,125.46,58.40247982]
[1742263532099,0.03,125.48,125.47,40.32147724]
[1742263532503,0.03,125.48,125.47,0.56864628]
[1742263533391,0.03,125.48,125.47,8.53864628]
[1742263533599,0.03,125.48,125.47,7.97]
[1742263536805,0.03,125.48,125.47,55.55147724]
[1742263537704,0.03,125.48,125.47,33.87964886]
[1742263540305,0.03,125.48,125.47,34.44829514]
[1742263541581,0.03,125.48,125.47,33.87964886]
[1742263543301,0.03,125.48,125.47,59.27010593]
[1742263543910,0.03,125.48,125.47,59.12794436]
[1742263544108,0.03,125.48,125.47,33.87964886]
[1742263544825,0.03,125.48,125.47,58.70145965]
[1742263545315,0.03,125.48,125.47,33.87964886]
[1742263547505,24.82181079,125.55,125.48,19.21829514]
[1742263547713,24.82181079,125.55,125.51,18.64964886]
[1742263547915,1.6246,125.59,125.51,24.82181079]
[1742263548096,24.82181079,125.57,125.53,7.9662]
[1742263548296,24.82181079,125.56,125.53,7.9662]
[1742263549328,24.82181079,125.56,125.52,26.61634886]
[1742263549892,24.82181079,125.55,125.51,7.26]
[1742263550115,24.82181079,125.55,125.5,26.61744886]
[1742263550116,24.82181079,125.54,125.5,26.61744886]
[1742263550698,24.82181079,125.53,125.5,7.9678]
[1742263551006,32.78741079,125.54,125.5,7.9678]
[1742263551209,24.82181079,125.54,125.5,7.9678]
[1742263551726,24.85181079,125.54,125.5,7.9678]
[1742263552411,24.82181079,125.53,125.49,18.64964886]
[1742263553728,24.82181079,125.53,125.49,26.61834886]
[1742263554129,32.78811079,125.53,125.49,26.61834886]
[1742263554630,24.82181079,125.53,125.49,26.61834886]
[1742263557126,24.82181079,125.52,125.48,16.7248]
[1742263557328,24.82181079,125.5,125.47,6.3594]
[1742263558105,24.82181079,125.51,125.47,6.3594]
[1742263558638,24.82181079,125.51,125.47,14.3291]
[1742263560242,32.06181079,125.53,125.48,43.47145965]
[1742263560407,24.82181079,125.53,125.48,43.47145965]
[1742263560612,24.82181079,125.53,125.49,7.9687]
[1742263561037,24.82181079,125.52,125.48,26.61874886]
[1742263562532,24.82181079,125.53,125.48,51.44055965]
[1742263563340,7.9958,125.54,125.48,51.44055965]
[1742263563639,24.82181079,125.53,125.48,51.44055965]
[1742263564016,0.03,125.54,125.5,43.47145965]
[1742263564339,0.03,125.54,125.51,7.9674]
[1742263564509,0.03,125.54,125.5,26.61744886]
[1742263565035,24.85181079,125.54,125.5,26.61744886]
[1742263565214,24.82181079,125.53,125.48,25.10613393]
[1742263565416,24.82181079,125.52,125.49,18.64964886]
[1742263565618,0.03,125.52,125.49,18.64964886]
[1742263566440,0.03,125.52,125.51,18.64964886]
[1742263567827,0.03,125.52,125.5,15.2081]
[1742263568449,0.03,125.52,125.51,26.61704886]
[1742263570449,0.03,125.52,125.5,15.208]
[1742263571628,0.03,125.52,125.5,7.24]
[1742263571944,0.03,125.52,125.49,18.64964886]
[1742263572334,24.82181079,125.5,125.48,0.063]
[1742263573152,24.82181079,125.49,125.48,0.063]
[1742263574530,32.79051079,125.49,125.48,0.063]
[1742263575657,34.41181079,125.49,125.48,0.063]
[1742263577939,34.41181079,125.49,125.47,0.063]
[1742263578139,24.82181079,125.48,125.47,0.063]
[1742263579647,32.79111079,125.48,125.47,0.063]
[1742263581752,33.29111079,125.48,125.46,0.063]
[1742263582725,50.21226786,125.47,125.46,0.063]
[1742263582939,50.21226786,125.47,125.45,0.063]
[1742263582940,132.22794472,125.47,125.45,0.063]
[1742263583144,56.88362158,125.46,125.45,0.063]
[1742263583833,64.85422158,125.46,125.45,0.063]
[1742263584339,40.03241079,125.46,125.45,0.063]
[1742263584534,32.06181079,125.46,125.45,0.063]
[1742263585252,24.82181079,125.46,125.45,0.063]
[1742263586837,32.79241079,125.46,125.45,0.063]
[1742263587037,24.82181079,125.46,125.45,0.063]
[1742263588559,57.61422158,125.46,125.45,0.063]
[1742263591340,58.11422158,125.46,125.45,0.063]
[1742263591543,58.68286786,125.46,125.44,0.063]
[1742263591856,58.68286786,125.46,125.4,0.063]
[1742263591857,24.82181079,125.45,125.4,0.063]
[1742263592061,32.06181079,125.44,125.4,0.063]
[1742263592447,40.03371079,125.44,125.4,0.063]
[1742263594042,40.60235707,125.44,125.4,0.063]
[1742263594236,20.0,125.41,125.4,0.063]
[1742263594442,44.82181079,125.41,125.4,0.063]
[1742263595775,69.64362158,125.41,125.4,0.063]
[1742263596147,77.75958315,125.41,125.4,0.063]
[1742263597466,52.79561079,125.41,125.4,0.063]
[1742263598385,77.75958315,125.41,125.4,0.063]
[1742263599079,52.93777236,125.41,125.4,0.063]
[1742263599554,52.79561079,125.41,125.4,0.063]
[1742263601475,77.75958315,125.41,125.4,0.063]
[1742263602469,0.14216157,125.4,125.39,0.063]
[1742263602681,56.88362158,125.4,125.39,0.063]
[1742263603977,64.85802158,125.4,125.39,0.063]
[1742263604170,24.82181079,125.39,125.38,0.063]
[1742263604477,20.0,125.36,125.35,0.063]
[1742263605357,44.82181079,125.36,125.35,0.063]
[1742263605878,52.79881079,125.36,125.35,0.063]
[1742263607457,60.03881079,125.36,125.35,0.063]
[1742263607657,0.14216157,125.35,125.34,0.063]
[1742263607872,49.78578315,125.35,125.34,0.063]
[1742263608067,56.7659967,125.35,125.34,0.063]
[1742263609362,64.7435967,125.35,125.34,0.063]
[1742263609568,31.80202434,125.35,125.34,0.063]
[1742263609852,24.82181079,125.35,125.34,0.063]
[1742263612262,14.95217946,125.4,125.34,24.88481079]
[1742263612579,24.82181079,125.39,125.35,24.82181079]
[1742263612764,24.82181079,125.39,125.34,26.39861079]
[1742263613161,24.82181079,125.39,125.35,6.3177]
[1742263613385,24.82181079,125.4,125.35,31.13951079]
[1742263613762,81.8,125.44,125.37,24.82181079]
[1742263613969,24.82181079,125.43,125.38,24.82181079]
[1742263614152,24.82181079,125.43,125.39,7.9751]
[1742263614593,24.82181079,125.42,125.39,7.9751]
[1742263616171,24.82181079,125.42,125.37,63.55342122]
[1742263616358,0.03,125.45,125.41,43.47145965]
[1742263616564,0.03,125.45,125.42,24.82181079]
[1742263616954,0.03,125.45,125.44,43.47145965]
[1742263617457,0.03,125.45,125.44,18.64964886]
[1742263618389,0.03,125.45,125.44,26.62154886]
[1742263619993,0.03,125.45,125.44,58.67530593]
[1742263620169,0.03,125.45,125.44,60.23320593]
[1742263620972,0.03,125.45,125.44,26.87084886]
[1742263621193,24.85181079,125.45,125.44,6.6633]
[1742263621379,24.85181079,125.45,125.41,8.2212]
[1742263621570,24.82181079,125.43,125.41,8.2212]
[1742263624169,24.82181079,125.42,125.41,6.6633]
[1742263624573,24.82181079,125.42,125.38,8.0804]
[1742263624772,24.82181079,125.39,125.35,8.0442]
[1742263625066,24.82181079,125.37,125.35,8.0442]
[1742263625268,7.24,125.4,125.35,8.0442]
[1742263625467,24.82181079,125.39,125.35,8.0442]
[1742263625976,24.82181079,125.38,125.35,8.0442]
[1742263626376,24.82181079,125.38,125.35,8.1072]
[1742263626590,24.82181079,125.37,125.35,6.5656]
[1742263627492,44.82181079,125.36,125.35,0.063]
[1742263628794,52.79881079,125.36,125.35,0.063]
[1742263629495,44.82181079,125.36,125.35,0.063]
[1742263629691,20.0,125.36,125.35,0.063]
[1742263630595,24.82181079,125.37,125.35,0.063]
[1742263631490,7.24,125.4,125.35,0.063]
[1742263631692,27.7073,125.43,125.35,18.71264886]
[1742263631693,20.0,125.38,125.35,18.71264886]
[1742263631893,44.82181079,125.38,125.35,18.71264886]
[1742263632081,20.0,125.38,125.35,18.71264886]
[1742263633101,24.82181079,125.41,125.36,7.977]
[1742263633797,20.0,125.39,125.36,7.977]
[1742263634000,20.0,125.39,125.35,51.51195965]
[1742263634188,24.82181079,125.38,125.35,0.063]
[1742263634497,24.82181079,125.37,125.35,0.063]
[1742263635098,24.82181079,125.38,125.35,0.063]
[1742263637280,44.82181079,125.38,125.35,0.063]
[1742263638884,24.82181079,125.37,125.35,0.063]
[1742263639280,15.2143,125.41,125.35,0.063]
[1742263639482,24.82181079,125.38,125.35,0.063]
[1742263639709,20.0,125.38,125.36,24.82181079]
[1742263639909,20.0,125.38,125.35,0.063]
[1742263640479,44.82181079,125.38,125.35,0.063]
[1742263641296,24.82181079,125.37,125.35,0.063]
[1742263642490,44.82181079,125.36,125.35,0.063]
[1742263642803,52.06181079,125.36,125.35,0.063]
[1742263644508,60.03881079,125.36,125.35,0.063]
[1742263650007,60.18097236,125.36,125.35,0.063]
[1742263655825,60.60745707,125.36,125.35,0.063]
[1742263656112,85.42926786,125.36,125.35,0.063]
[1742263656492,0.14216157,125.35,125.34,0.063]
[1742263656804,131.58578315,125.35,125.34,0.063]
[1742263657909,139.56338315,125.35,125.34,0.063]
[1742263658106,139.98986786,125.35,125.34,0.063]
[1742263658714,0.42648471,125.34,125.33,0.063]
[1742263658918,50.07010629,125.34,125.33,0.063]
[1742263659720,49.64362158,125.34,125.33,0.063]
[1742263660097,57.76398315,125.34,125.33,0.063]
[1742263660297,58.19046786,125.34,125.33,0.063]
[1742263662130,139.99046786,125.34,125.33,0.063]
[1742263663127,0.14216157,125.33,125.32,0.063]
[1742263663331,24.96397236,125.33,125.32,0.063]
[1742263663628,20.0,125.3,125.29,0.063]
[1742263663805,52.06181079,125.3,125.29,0.063]
[1742263665923,27.24,125.3,125.29,0.063]
[1742263666295,7.24,125.3,125.29,0.063]
[1742263667525,24.82181079,125.31,125.29,0.063]
[1742263671408,24.82181079,125.33,125.29,0.063]
[1742263672528,24.82181079,125.32,125.29,0.063]
[1742263673527,24.82181079,125.33,125.29,44.10310593]
[1742263673716,0.03,125.31,125.3,26.63044886]
[1742263674226,0.03,125.31,125.3,32.88784886]
[1742263674628,0.03,125.36,125.31,18.64964886]
[1742263674812,24.85181079,125.36,125.31,43.47145965]
[1742263675015,20.0,125.35,125.31,43.47145965]
[1742263675631,44.82181079,125.35,125.31,18.64964886]
[1742263675819,44.82181079,125.35,125.32,7.9795]
[1742263676127,20.0,125.35,125.32,7.9795]
[1742263676313,24.82181079,125.33,125.3,14.2381]
[1742263676521,24.82181079,125.32,125.3,14.2381]
[1742263676833,24.82181079,125.33,125.3,14.2381]
[1742263679625,24.82181079,125.32,125.3,6.2574]
[1742263679826,24.82181079,125.31,125.29,0.063]
[1742263680032,24.82181079,125.3,125.29,0.063]
[1742263680833,24.82181079,125.32,125.29,0.063]
[1742263681337,24.82181079,125.31,125.29,0.063]
[1742263681638,24.82181079,125.3,125.29,0.063]
[1742263682217,1.6066,125.36,125.29,0.063]
[1742263682418,24.82181079,125.32,125.29,0.063]
[1742263682941,24.82181079,125.32,125.29,8.0444]
[1742263683238,24.82181079,125.32,125.27,19.9568]
[1742263684138,24.82181079,125.31,125.27,27.9395]
[1742263684838,24.82181079,125.3,125.27,7.9827]
[1742263685337,24.82181079,125.29,125.27,7.9827]
[1742263685545,24.82181079,125.29,125.27,8.0457]
[1742263686717,0.03,125.3,125.29,18.64964886]
[1742263687032,0.03,125.3,125.29,51.34705965]
[1742263687939,24.82181079,125.35,125.29,51.91570593]
[1742263688238,24.85181079,125.36,125.31,33.08633393]
[1742263688539,20.0,125.33,125.31,33.08633393]
[1742263688736,20.0,125.33,125.31,8.26452314]
[1742263689370,24.85181079,125.36,125.32,25.10613393]
[1742263689371,0.03,125.36,125.32,25.10613393]
[1742263689517,24.85181079,125.36,125.32,0.28432314]
[1742263689716,24.82181079,125.35,125.31,28.21502314]
[1742263689921,24.82181079,125.34,125.31,7.9802]
[1742263690518,0.03,125.36,125.3,15.2206]
[1742263690519,24.82181079,125.33,125.3,15.2206]
[1742263692248,24.82181079,125.33,125.3,7.24]
[1742263692419,24.82181079,125.32,125.3,15.2207]
[1742263692625,24.82181079,125.32,125.3,7.9807]
[1742263692826,24.82181079,125.33,125.29,15.8569]
[1742263697470,24.82181079,125.35,125.3,0.56864628]
[1742263697748,0.03,125.33,125.3,25.39045707]
[1742263698426,0.03,125.33,125.3,0.56864628]
[1742263698854,0.03,125.33,125.31,7.9802]
[1742263699049,0.03,125.33,125.32,0.56864628]
[1742263699742,0.03,125.33,125.32,25.39045707]
[1742263699934,0.03,125.33,125.32,44.04010593]
[1742263700964,0.03,125.33,125.32,52.01960593]
[1742263702771,0.03,125.33,125.32,8.54814628]
[1742263705635,24.85181079,125.33,125.31,7.98]
[1742263706160,24.85181079,125.33,125.3,7.9808]
[1742263706658,0.03,125.33,125.3,7.9808]
[1742263707156,24.85181079,125.33,125.3,7.9808]
[1742263708058,0.03,125.33,125.3,7.9808]
[1742263708233,0.03,125.33,125.3,27.9329]
[1742263708552,0.03,125.33,125.31,25.39045707]
[1742263708860,0.03,125.33,125.32,43.47145965]
[1742263709156,0.03,125.33,125.32,51.45095965]
[1742263710960,0.03,125.33,125.32,33.36995707]
[1742263712741,0.03,125.33,125.32,8.54814628]
[1742263713143,0.03,125.33,125.32,33.36995707]
[1742263713546,0.03,125.33,125.32,32.80131079]
[1742263713750,24.85181079,125.33,125.29,0.063]
[1742263713949,24.82181079,125.3,125.29,0.063]
[1742263714145,24.82181079,125.31,125.29,0.063]
[1742263717743,24.82181079,125.3,125.29,0.063]
[1742263717960,32.06181079,125.3,125.29,0.063]
[1742263719272,33.67221079,125.3,125.29,0.063]
[1742263719563,41.65301079,125.3,125.29,0.063]
[1742263722172,20.0,125.28,125.27,0.063]
[1742263722465,44.82181079,125.28,125.27,0.063]
[1742263723168,52.80391079,125.28,125.27,0.063]
[1742263726464,44.82181079,125.28,125.27,0.063]
[1742263728658,52.80391079,125.28,125.27,0.063]
[1742263728856,77.62572158,125.28,125.27,0.063]
[1742263729146,96.55969358,125.28,125.27,0.063]
[1742263729349,77.62572158,125.28,125.27,0.063]
[1742263729554,52.80391079,125.28,125.27,0.063]
[1742263729966,77.62572158,125.28,125.27,0.063]
[1742263730472,52.80391079,125.28,125.27,0.063]
[1742263732970,77.62572158,125.28,125.27,0.063]
[1742263733169,96.55969358,125.28,125.27,0.063]
[1742263735374,96.41753201,125.28,125.22,0.063]
[1742263735561,24.82181079,125.24,125.22,0.063]
[1742263736859,20.0,125.23,125.22,0.063]
[1742263739461,23.19139132,125.26,125.22,0.063]
[1742263739871,23.19139132,125.26,125.22,8.0489]
[1742263740279,0.03,125.29,125.25,15.95139132]
[1742263740468,0.03,125.29,125.27,15.95139132]
[1742263740778,0.03,125.29,125.28,15.95139132]
[1742263741989,0.03,125.29,125.27,23.93409132]
[1742263743174,0.03,125.29,125.27,32.87752612]
[1742263743378,0.03,125.29,125.28,24.89482612]
[1742263744286,0.03,125.29,125.28,58.12732126]
[1742263744462,0.03,125.33,125.3,0.28432314]
[1742263744657,0.03,125.33,125.31,24.89482612]
[1742263745183,0.03,125.33,125.32,25.17914926]
[1742263745373,0.03,125.33,125.31,7.24]
[1742263746165,0.03,125.33,125.32,7.9795]
[1742263747598,0.03,125.33,125.32,32.87432612]
[1742263748465,0.03,125.33,125.32,7.9795]
[1742263749263,0.03,125.33,125.32,32.87432612]
[1742263750096,0.03,125.33,125.32,52.09262126]
[1742263753170,0.03,125.33,125.32,27.19779514]
[1742263753379,0.03,125.33,125.32,52.09262126]
[1742263753684,0.03,125.33,125.32,8.26382314]
[1742263756506,0.03,125.36,125.34,24.84514886]
[1742263756683,0.03,125.36,125.35,51.35312126]
[1742263756888,0.03,125.36,125.35,60.84142126]
[1742263757474,0.03,125.36,125.35,17.01262314]
[1742263758389,0.03,125.36,125.35,7.24]
[1742263758589,0.03,125.36,125.34,7.9782]
[1742263759805,0.03,125.36,125.34,32.87302612]
[1742263760306,0.03,125.36,125.34,7.9782]
[1742263760686,0.03,125.36,125.34,32.87302612]
[1742263761109,0.03,125.36,125.35,0.28432314]
[1742263761277,0.03,125.36,125.35,44.11312126]
[1742263762493,0.03,125.36,125.34,7.9782]
[1742263763793,0.03,125.36,125.34,32.87302612]
[1742263763993,0.03,125.36,125.35,25.17914926]
[1742263764189,0.03,125.36,125.35,44.11312126]
[1742263765816,0.03,125.36,125.35,52.09072126]
[1742263767207,0.03,125.36,125.35,27.19589514]
[1742263767605,0.03,125.36,125.35,52.09072126]
[1742263768909,0.0001,125.36,125.35,52.09072126]
[1742263769211,0.0001,125.36,125.35,53.64232126]
[1742263771397,0.0001,125.36,125.35,60.07042126]
[1742263773511,0.0001,125.38,125.37,0.28432314]
[1742263773713,0.0001,125.38,125.37,51.33312126]
[1742263773908,0.0001,125.38,125.37,59.30942126]
[1742263774115,0.0001,125.38,125.37,197.40942126]
[1742263774408,0.0001,125.38,125.37,198.86796112]
[1742263775098,0.0001,125.38,125.37,510.86796112]
[1742263775617,0.0001,125.38,125.37,60.76796112]
[1742263777920,0.0001,125.38,125.37,16.65483986]
[1742263778122,0.0001,125.38,125.37,1.45853986]
[1742263778620,0.0001,125.38,125.33,18.996972]
[1742263778621,24.89492612,125.38,125.33,18.996972]
[1742263778828,24.89482612,125.37,125.34,0.28432314]
[1742263779212,15.92146163,125.38,125.34,8.26232314]
[1742263779813,15.92146163,125.38,125.34,7.978]
[1742263780009,0.0001,125.38,125.35,34.85533363]
[1742263780234,0.0001,125.38,125.37,7.9763]
[1742263780605,0.0001,125.38,125.36,8.26102314]
[1742263780822,0.0001,125.38,125.35,7.9776]
[1742263781030,0.0001,125.38,125.35,15.1976]
[1742263782728,0.0001,125.38,125.35,60.01066506]
[1742263783444,0.0001,125.38,125.36,25.1532882]
[1742263784343,0.0001,125.38,125.37,7.9763]
[1742263784838,0.0001,125.38,125.37,8.26062314]
[1742263785434,0.0001,125.38,125.37,52.0635602]
[1742263786323,0.0001,125.38,125.36,8.26132314]
[1742263786550,0.0001,125.38,125.36,33.1302882]
[1742263787130,0.0001,125.38,125.37,44.0872602]
[1742263788629,0.0001,125.38,125.37,52.0635602]
[1742263790950,0.0001,125.38,125.37,27.19459514]
[1742263791248,0.0001,125.38,125.37,52.0635602]
[1742263792951,0.0001,125.38,125.37,8.26062314]
[1742263793833,0.0001,125.38,125.37,52.0635602]
[1742263794023,0.03,125.45,125.4,0.28432314]
[1742263794228,0.0001,125.45,125.44,44.0872602]
[1742263794635,0.0001,125.45,125.44,25.1532882]
[1742263794835,0.0001,125.45,125.44,0.28432314]
[1742263796054,0.0001,125.45,125.44,8.25622314]
[1742263800159,0.0001,125.45,125.44,52.0591602]
[1742263800760,0.0001,125.45,125.44,7.9719]
[1742263801658,24.86906506,125.45,125.43,7.9722]
[1742263802032,0.0001,125.45,125.43,7.9722]
[1742263802550,0.0001,125.45,125.42,28.19052314]
[1742263802751,0.0001,125.45,125.42,53.0594882]
[1742263804550,24.86896506,125.43,125.39,162.96896506]
[1742263804755,24.86896506,125.42,125.39,7.9751]
[1742263806356,24.86896506,125.42,125.38,8.26002314]
[1742263806945,24.86896506,125.42,125.38,7.9757]
[1742263807143,24.86896506,125.4,125.38,7.9757]
[1742263807358,24.86896506,125.39,125.36,220.643]
[1742263807658,24.86896506,125.38,125.36,220.643]
[1742263807962,24.86896506,125.38,125.36,228.6198]
[1742263808165,24.86896506,125.39,125.36,228.6198]
[1742263808349,24.86896506,125.4,125.36,228.6198]
[1742263808662,24.86896506,125.42,125.37,25.1532882]
[1742263808862,24.86896506,125.42,125.37,24.86896506]
[1742263809358,24.86896506,125.41,125.37,24.86896506]
[1742263809561,24.86896506,125.39,125.36,228.6198]
[1742263809857,24.86896506,125.38,125.36,228.6198]
[1742263810056,24.86896506,125.39,125.36,228.6198]
[1742263810366,24.86896506,125.37,125.36,0.063]
[1742263811864,26.50826506,125.37,125.36,0.063]
[1742263813869,34.48456506,125.37,125.36,0.063]
[1742263815371,26.50826506,125.37,125.36,0.063]
[1742263815667,34.48456506,125.37,125.36,0.063]
[1742263816059,26.50826506,125.37,125.36,0.063]
[1742263816566,34.48456506,125.37,125.36,0.063]
[1742263816776,20.0,125.35,125.34,0.063]
[1742263817066,38.71216506,125.35,125.34,0.063]
[1742263818665,46.68976506,125.35,125.34,0.063]
[1742263821245,38.71216506,125.35,125.34,0.063]
[1742263822063,46.68976506,125.35,125.34,0.063]
[1742263824871,38.71216506,125.35,125.34,0.063]
[1742263825570,46.68976506,125.35,125.34,0.063]
[1742263825872,38.71216506,125.35,125.34,0.063]
[1742263826455,65.33941392,125.35,125.34,0.063]
[1742263827173,90.49270212,125.35,125.34,0.063]
[1742263827470,90.49270212,125.35,125.33,0.063]
[1742263827471,18.933972,125.34,125.33,0.063]
[1742263827643,150.47190212,125.34,125.33,0.063]
[1742263829175,158.45010212,125.34,125.33,0.063]
[1742263830442,20.0,125.29,125.27,0.063]
[1742263830648,24.86896506,125.28,125.27,0.063]
[1742263830847,27.22,125.29,125.27,0.063]
[1742263830848,52.08896506,125.29,125.27,0.063]
[1742263831048,24.86896506,125.28,125.27,0.063]
[1742263835766,32.85106506,125.28,125.27,0.063]
[1742263835975,35.2017,125.29,125.27,0.063]
[1742263836184,24.86896506,125.28,125.27,0.063]
[1742263836978,32.85106506,125.28,125.27,0.063]